fUST/lending_fUST_20240521
["ID","MTS","AMOUNT","RATE_DAILY","PERIOD"]
[327667711,1716294640915,-355.581343,0.00030137,2]
[327667712,1716294640925,-355.581343,0.00030137,2]
[327667713,1716294640936,-355.581343,0.00030137,2]
[327667714,1716294640945,-355.581343,0.00030137,2]
[327667715,1716294640955,-355.581343,0.00030137,2]
[327667716,1716294640965,-355.581343,0.00030137,2]
[327667717,1716294640975,-355.581343,0.00030137,2]
[327667718,1716294640985,-355.58134311,0.00030137,2]
[327667719,1716294640995,-203.310766,0.00030137,2]
[327667720,1716294641006,-203.310766,0.00030137,2]
[327667721,1716294641015,-203.310766,0.00030137,2]
[327667722,1716294641025,-203.310766,0.00030137,2]
[327667723,1716294641035,-203.310766,0.00030137,2]
[327667724,1716294641044,-203.310766,0.00030137,2]
[327667725,1716294641057,-203.310766,0.00030137,2]
[327667726,1716294641066,-203.310766,0.00030137,2]
[327667727,1716294641076,-203.310766,0.00030137,2]
[327667728,1716294641087,-203.310766,0.00030137,2]
[327667729,1716294641097,-203.310766,0.00030137,2]
[327667730,1716294641106,-203.310766,0.00030137,2]
[327667731,1716294641117,-203.310766,0.00030137,2]
[327667732,1716294641127,-203.310756,0.00030137,2]
[327667733,1716294641137,-377.387708,0.00030137,2]
[327667734,1716294641147,-377.387708,0.00030137,2]
[327667735,1716294641156,-377.387708,0.00030137,2]
[327667736,1716294641166,-284.93746242,0.00030137,2]
[327667737,1716294641186,-92.45024558,0.00030137,2]
[327667738,1716294641196,-377.387708,0.00030137,2]
[327667739,1716294641206,-377.387708,0.00030137,2]
[327667740,1716294641215,-377.387708,0.00030137,2]
[327667741,1716294641225,-377.387708,0.00030137,2]
[327667742,1716294641235,-377.387708,0.00030137,2]
[327667743,1716294641244,-377.387708,0.00030137,2]
[327667744,1716294641254,-377.387708,0.00030137,2]
[327667745,1716294641263,-377.387708,0.00030137,2]
[327667746,1716294641272,-377.387708,0.00030137,2]
[327667747,1716294641282,-377.387712,0.00030137,2]
[327667748,1716294641291,-151.0,0.00030137,2]
[327667749,1716294641300,-151.0,0.00030137,2]
[327667750,1716294641311,-151.0,0.00030137,2]
[327667751,1716294641321,-151.0,0.00030137,2]
[327667752,1716294641330,-151.0,0.00030137,2]
[327667753,1716294641339,-151.0,0.00030137,2]
[327667754,1716294641349,-151.0,0.00030137,2]
[327667755,1716294641358,-151.0,0.00030137,2]
[327667756,1716294641463,-151.0,0.00030137,2]
[327667757,1716294641473,-151.0,0.00030137,2]
[327667758,1716294641483,-183.75615272,0.00030137,2]
[327667759,1716294641492,-227.129318,0.00030137,2]
[327667760,1716294641502,-1737.0871997,0.00030137,2]
[327667761,1716294641638,-713.8438593,0.00030137,2]
[327667762,1716294641647,-2450.931059,0.00030137,2]
[327667763,1716294641656,-2450.931059,0.00030137,2]
[327667764,1716294641666,-2450.931059,0.00030137,2]
[327667765,1716294641675,-2450.931059,0.00030137,2]
[327667766,1716294641684,-2450.931059,0.00030137,2]
[327667767,1716294641694,-2450.931059,0.00030137,2]
[327667768,1716294641703,-2450.931059,0.00030137,2]
[327667769,1716294641712,-2450.931059,0.00030137,2]
[327667770,1716294641723,-2450.931059,0.00030137,2]
[327667771,1716294641732,-2450.931059,0.00030137,2]
[327667772,1716294641742,-2450.931059,0.00030137,2]
[327667773,1716294641751,-2450.931059,0.00030137,2]
[327667774,1716294641760,-1385.70943936,0.00030137,2]
[327667775,1716294641772,-1065.22161064,0.00030137,2]
[327667776,1716294641781,-151.0,0.00030137,2]
[327667777,1716294641791,-151.0,0.00030137,2]
[327667778,1716294641800,-151.0,0.00030137,2]
[327667779,1716294641811,-153.0,0.00030192,2]
[327667780,1716294641827,-196.910447,0.0003031,2]
[327667781,1716294641837,-6000.0,0.00031,3]
[327667782,1716294641846,-150.0,0.00031,6]
[327667783,1716294641855,-250.5,0.00031195,7]
[327667784,1716294641866,-205.0,0.0003124,22]
[327667785,1716294641876,-15455.9704,0.00031458,30]
[327667786,1716294641886,-2995.75243967,0.00031485,4]
[327667787,1716294641895,-5343.25281243,0.00032,5]
[327667788,1716294641906,-1000.0,0.00032,40]
[327667789,1716294641916,-1076.88527639,0.0003219,2]
[327667790,1716294641926,-939.17438064,0.00032342,3]
[327667791,1716294641936,-153.0,0.00032356,2]
[327667792,1716294641945,-35262.35439315,0.00032369,5]
[327667835,1716294644535,-14194.68646976,0.00032369,5]
[327667885,1716294680742,158.56849578,9.999e-05,2]
[327667886,1716294712228,522.78148972,9.999e-05,2]
[327667887,1716294728204,702.80759732,9.999e-05,2]
[327667888,1716294748667,115.84241718,9.999e-05,2]
[327667889,1716294748699,568.98586262,9.999e-05,2]
[327667890,1716294819129,931.01413738,8.363e-05,2]
[327667891,1716294819181,289.15634206,8.363e-05,2]
[327667892,1716294819252,1214.05180342,8.363e-05,2]
[327667894,1716294896088,285.94819658,9.1e-05,2]
[327667895,1716294907485,1500.0,8.1e-05,2]
[327667896,1716294926212,5000.0,7.1e-05,2]
[327667897,1716294951496,10000.0,6.1e-05,2]
[327667898,1716294960688,10000.0,6.1e-05,2]
[327667899,1716294981824,4889.6,6.1e-05,2]
[327667965,1716295832037,-529.13,0.00010959,2]
[327667966,1716295832049,-7824.68332714,0.0001276,2]
[327668016,1716295838518,-1576.87494073,0.0001276,2]
[327668018,1716295838527,-24900.0,0.00012761,2]
[327668020,1716295838536,-181.49361007,0.00013695,2]
[327668022,1716295838546,-2635.15875922,0.00013696,2]
[327668024,1716295838555,-283.68900956,0.00013794,2]
[327668026,1716295838564,-241.825171,0.00013795,2]
[327668028,1716295838575,-267.1970171,0.00014586,2]
[327668030,1716295838584,-160.10170417,0.000155,2]
[327668032,1716295838593,-189.96457126,0.00017897,2]
[327668034,1716295838603,-163.492418,0.00019178,2]
[327668036,1716295838612,-167.64096092,0.00020813,2]
[327668038,1716295838621,-68088.04491773,0.00020911,2]
[327668040,1716295838630,-161.73688214,0.00020911,2]
[327668042,1716295838639,-500.0,0.00020911,2]
[327668044,1716295838649,-500.0,0.00020911,2]
[327668046,1716295838659,-500.0,0.00020911,2]
[327668048,1716295838668,-208.1110986,0.00020911,2]
[327668050,1716295838677,-500.0,0.00020911,2]
[327668052,1716295838687,-500.0,0.00020911,2]
[327668054,1716295838696,-500.0,0.00020911,2]
[327668056,1716295838705,-500.0,0.00020911,2]
[327668058,1716295838715,-500.0,0.00020911,2]
[327668060,1716295838725,-500.0,0.00020911,2]
[327668062,1716295838735,-500.0,0.00020911,2]
[327668064,1716295838744,-500.0,0.00020911,2]
[327668066,1716295838753,-500.0,0.00020911,2]
[327668068,1716295838763,-500.0,0.00020911,2]
[327668070,1716295838772,-500.0,0.00020911,2]
[327668072,1716295838781,-500.0,0.00020911,2]
[327668074,1716295838791,-500.0,0.00020911,2]
[327668076,1716295838800,-500.0,0.00020911,2]
[327668078,1716295838810,-500.0,0.00020911,2]
[327668080,1716295838819,-507.28417186,0.00020911,2]
[327668082,1716295838830,-500.0,0.00020911,2]
[327668084,1716295838839,-10454.14770375,0.00020912,2]
[327668086,1716295838848,-186.036217,0.00024384,2]
[327668088,1716295838857,-150.0,0.0002549,5]
[327668090,1716295838867,-150.0,0.0002549,5]
[327668092,1716295838876,-167.64096092,0.00026107,2]
[327668094,1716295838885,-496.0,0.00026829,2]
[327668096,1716295838895,-150.0,0.00026829,2]
[327668098,1716295838904,-150.0,0.00026829,2]
[327668100,1716295838915,-1136.44476732,0.0002739,2]
[327668102,1716295838924,-150.0,0.00028627,7]
[327668104,1716295838934,-150.0,0.00028627,7]
[327668106,1716295838943,-355.39159088,0.00029,2]
[327668108,1716295838952,-496.0,0.00029829,2]
[327668110,1716295838962,-150.0,0.00029829,2]
[327668112,1716295838972,-150.0,0.00029829,2]
[327668114,1716295838982,-2000.0,0.000299,2]
[327668116,1716295838991,-43902.63306384,0.0003,7]
[327668118,1716295839001,-186.036217,0.0003031,2]
[327668120,1716295839011,-921.16266462,0.0003123,4]
[327668122,1716295839021,-167.64096092,0.000314,2]
[327668124,1716295839030,-37599.82708711,0.000315,7]
[327668126,1716295839040,-50582.0,0.000315,2]
[327668128,1716295839049,-150.0,0.00031765,7]
[327668130,1716295839059,-150.0,0.00031765,7]
[327668132,1716295839069,-751.33950451,0.00032032,3]
[327668134,1716295839080,-4224.07535635,0.00032146,2]
[327668136,1716295839088,-417.32360569,0.00032184,2]
[327668138,1716295839098,-234.33050576,0.00032369,2]
[327668140,1716295839107,-285.74827739,0.00032369,2]
[327668142,1716295839117,-155.0,0.00032512,2]
[327668144,1716295839126,-88888.0,0.000326,5]
[327668146,1716295839136,-281.0,0.000326,5]
[327668148,1716295839145,-160.0,0.000326,7]
[327668150,1716295839155,-9262.89294554,0.000326,5]
[327668152,1716295839165,-35933.528543,0.00032669,17]
[327668154,1716295839177,-57947.66761464,0.00032669,2]
[327668156,1716295839188,-12368.95522421,0.00032669,4]
[327668158,1716295839205,-6872.67421625,0.00032669,4]
[327668160,1716295839215,-2449.62578475,0.00032669,4]
[327668195,1716295840576,-46.31698136,0.00032669,4]
[327668196,1716295840746,-370.33268568,0.000328,10]
[327668197,1716295840759,-65921.60988012,0.000328,10]
[327668198,1716295840779,-23508.21,0.000328,10]
[327668225,1716295843674,-1016.65,0.0002999,3]
[327668226,1716295843684,-9326.28515466,0.000328,10]
[327668227,1716295843697,-9400.58082767,0.000328,10]
[327668228,1716295843709,-1383.25468703,0.000328,10]
[327668239,1716295846095,-980.60678312,0.000328,10]
[327668240,1716295846107,-471.37355978,0.000328,10]
[327668252,1716295854073,1173.4604615,6.1e-05,2]
[327668256,1716295859662,301.72923525,6.1e-05,2]
[327668260,1716295860933,4813.70106343,6.1e-05,2]
[327668261,1716295884780,2334.67386499,6.1e-05,2]
[327668266,1716296343487,-158.56849578,9.999e-05,2]
[327668372,1716297032247,-181.49361007,0.00017999,2]
[327668374,1716297032257,-999.73764395,0.00018,2]
[327668375,1716297032267,-2342.3588679,0.00020165,2]
[327668376,1716297032276,-63168.13024361,0.00020913,2]
[327668377,1716297032287,-160.10170417,0.00021366,2]
[327668378,1716297032297,-500.0,0.00021466,2]
[327668379,1716297032306,-500.0,0.00021466,2]
[327668380,1716297032316,-500.0,0.00021466,2]
[327668381,1716297032325,-557.55540577,0.00021466,2]
[327668382,1716297032335,-500.0,0.00021466,2]
[327668383,1716297032347,-500.0,0.00021466,2]
[327668384,1716297032357,-500.0,0.00021466,2]
[327668385,1716297032366,-454.68525156,0.00021466,2]
[327668386,1716297032375,-500.0,0.00021466,2]
[327668387,1716297032386,-500.0,0.00021466,2]
[327668388,1716297032395,-500.0,0.00021466,2]
[327668389,1716297032404,-500.0,0.00021466,2]
[327668390,1716297032413,-19206.57386521,0.00021467,2]
[327668391,1716297032458,-2528.42662365,0.00021467,2]
[327668392,1716297032472,-3164.99951114,0.00021467,2]
[327668393,1716297032482,-163.492418,0.00021831,2]
[327668394,1716297032491,-167.432595,0.00024384,2]
[327668395,1716297032500,-362.12773647,0.00025,2]
[327668396,1716297032510,-150.0,0.0002552,5]
[327668397,1716297032519,-150.0,0.0002552,5]
[327668398,1716297032528,-150.0,0.0002686,2]
[327668399,1716297032538,-496.0,0.0002686,2]
[327668400,1716297032548,-150.0,0.0002686,2]
[327668401,1716297032557,-515.17,0.0002734,3]
[327668402,1716297032567,-618.21,0.0002735,3]
[327668403,1716297032581,-88.56533224,0.0002736,3]
[327668481,1716297042476,-150.0,0.0002552,5]
[327668483,1716297042486,-1136.44476732,0.0002739,2]
[327668485,1716297042495,-150.0,0.0002986,2]
[327668487,1716297042504,-496.0,0.0002986,2]
[327668488,1716297042514,-150.0,0.0002986,2]
[327668489,1716297042523,-167.432595,0.0003031,2]
[327668490,1716297042533,-24650.06951789,0.00031181,2]
[327668491,1716297042542,-686.32369507,0.00032342,3]
[327668492,1716297042552,-4224.07535635,0.00032359,2]
[327668493,1716297042562,-417.32360569,0.00032395,2]
[327668494,1716297042571,-204.32200242,0.000327,13]
[327668495,1716297042585,-2000.0,0.000327,2]
[327668496,1716297042594,-500.0,0.00032754,2]
[327668497,1716297042606,-643.55,0.00032766,3]
[327668498,1716297042616,-23651.25459043,0.00032776,5]
[327668499,1716297042629,-65236.74540957,0.00032776,5]
[327668500,1716297042638,-6075.56071838,0.000328,7]
[327668501,1716297042649,-5241.89848587,0.000328,7]
[327668511,1716297043493,-444.15043382,0.000328,7]
[327668512,1716297043506,-1352.94956658,0.000328,7]
[327668518,1716297043808,-11342.10259387,0.000328,7]
[327668534,1716297077625,684.8282798,9.999e-05,2]
[327668535,1716297097656,818.5944738,9.999e-05,2]
[327668536,1716297099651,909.92037244,9.999e-05,2]
[327668537,1716297101681,1717.62384614,9.999e-05,2]
[327668538,1716297104404,1450.9824822,0.0001,2]
[327668539,1716297105606,658.33611615,9.999e-05,2]
[327668541,1716297239733,522.78148972,9.999e-05,2]
[327668542,1716297252024,702.80759732,9.999e-05,2]
[327668543,1716297254336,3373.78266972,9.999e-05,2]
[327668544,1716297266509,155.0,9.999e-05,2]
[327668545,1716297281588,156.4485373,9.999e-05,2]
[327668546,1716297288267,3373.78266972,9.999e-05,2]
[327668547,1716297304104,410.5949292,9.999e-05,2]
[327668548,1716297319292,302.38073973,9.999e-05,2]
[327668549,1716297320281,1043.53548688,9.999e-05,2]
[327668550,1716297349215,155.0,9.999e-05,2]
[327668551,1716297360633,155.0,9.999e-05,2]
[327668552,1716297386262,1980.15332941,9.999e-05,2]
[327668582,1716298234500,-338.0,0.00018598,2]
[327668583,1716298234512,-652.4519146,0.00018598,2]
[327668584,1716298234521,-181.49361007,0.00018995,2]
[327668585,1716298234530,-921.28647666,0.00018996,2]
[327668586,1716298234539,-1450.9824822,0.00018997,2]
[327668587,1716298234548,-250.0,0.00018999,2]
[327668588,1716298234557,-2031.1597846,0.00019435,2]
[327668589,1716298234567,-6840.2196699,0.00019478,2]
[327668590,1716298234578,-10222.2550726,0.00019478,2]
[327668591,1716298234587,-2114.917346,0.00020365,2]
[327668592,1716298234596,-130.84195671,0.00024384,2]
[327668593,1716298234608,-27.77839629,0.00024384,2]
[327668594,1716298234617,-496.0,0.00026591,2]
[327668595,1716298234627,-88.95660371,0.00026591,2]
[327668607,1716298239279,-702.80759732,0.00018597,2]
[327668609,1716298239289,-61.04339629,0.00026591,2]
[327668611,1716298239299,-496.0,0.00029591,2]
[327668613,1716298239308,-150.0,0.00029591,2]
[327668614,1716298239317,-158.620353,0.00030639,2]
[327668616,1716298239326,-4431.52865339,0.00031,2]
[327668633,1716298239508,-941.43610251,0.00031,2]
[327668638,1716298239552,-5688.27772219,0.00031,2]
[327668640,1716298239565,-2578.40232067,0.00031,2]
[327668642,1716298239575,-33.33114093,0.00032426,3]
[327668660,1716298239787,-515.72781512,0.00032426,3]
[327668662,1716298239798,-417.32360569,0.00032484,2]
[327668664,1716298239808,-1492.73455153,0.00032542,2]
[327668666,1716298239821,-375.86462864,0.00032542,2]
[327668779,1716298241241,-2355.47617618,0.00032542,2]
[327668781,1716298241251,-496.0,0.00032591,2]
[327668783,1716298241261,-340.56,0.00032665,3]
[327668785,1716298241271,-453.23803104,0.00032674,2]
[327668787,1716298241281,-500.0,0.00032674,2]
[327668789,1716298241292,-500.0,0.00032674,2]
[327668791,1716298241301,-486.40557547,0.00032674,2]
[327668793,1716298241311,-24540.2912702,0.00032675,4]
[327668795,1716298241323,-3662.60679389,0.00032675,4]
[327668978,1716298244202,-32743.46188454,0.00032675,4]
[327668980,1716298244212,-1958.52819249,0.00032676,2]
[327668982,1716298244224,-41.47180751,0.00032676,2]
[327668984,1716298244233,-33494.03070146,0.00032775,5]
[327669162,1716298246970,-4087.8911132,0.00017426,2]
[327669163,1716298246981,-186.50129604,0.00032674,2]
[327669164,1716298246990,-1.73495924,0.00032775,5]
[327669165,1716298247002,-625.13212042,0.00032775,5]
[327669166,1716298257287,1269.87848469,9.999e-05,2]
[327669286,1716299432225,-155.0418613,7.314e-05,2]
[327669288,1716299432234,-236.58378275,7.315e-05,2]
[327669290,1716299432244,-72.14093955,7.315e-05,2]
[327669300,1716299432498,-7824.24215032,7.315e-05,2]
[327669302,1716299432508,-285.12297754,7.315e-05,2]
[327669303,1716299432518,-219.21866786,7.315e-05,2]
[327669305,1716299432527,-156.49929555,7.316e-05,2]
[327669307,1716299432537,-316.32323638,7.316e-05,2]
[327669309,1716299432546,-1095.32887004,7.316e-05,2]
[327669311,1716299432556,-1496.84971124,7.317e-05,2]
[327669313,1716299432565,-51946.61907716,7.317e-05,2]
[327669315,1716299432577,-7470.44145305,7.317e-05,2]
[327669317,1716299432586,-238.83667024,7.318e-05,2]
[327669319,1716299432600,-2633.44385018,7.322e-05,2]
[327669321,1716299432611,-658.33611615,8.112e-05,2]
[327669323,1716299432621,-302.38073973,8.12e-05,2]
[327669325,1716299432631,-1043.53548688,8.12e-05,2]
[327669327,1716299432641,-522.78148972,8.121e-05,2]
[327669329,1716299432652,-4707.9160573,8.122e-05,2]
[327669331,1716299432662,-818.5944738,8.952e-05,2]
[327669333,1716299432672,-306.5595987,8.953e-05,2]
[327669335,1716299432682,-653.7738603,8.991e-05,2]
[327669337,1716299432691,-298.03149135,9.499e-05,2]
[327669339,1716299432700,-12207.08453712,9.97e-05,2]
[327669439,1716299438722,-502.52019925,7.314e-05,2]
[327669440,1716299438734,-615.82,7.314e-05,2]
[327669441,1716299438746,-232.54636058,7.314e-05,2]
[327669442,1716299438756,-1687.63037249,9.97e-05,2]
[327669443,1716299438768,-6154.54030897,9.97e-05,2]
[327669444,1716299438780,-6161.38737027,9.97e-05,2]
[327669445,1716299438790,-2635.15875922,9.998e-05,2]
[327669446,1716299438799,-1196.91243673,9.999e-05,2]
[327669447,1716299438809,-653.96033984,9.999e-05,2]
[327669448,1716299438819,-14604.32679393,9.999e-05,2]
[327669449,1716299438833,-723.32851884,9.999e-05,2]
[327669451,1716299438851,-1010.48188997,9.999e-05,2]
[327669453,1716299438863,-2100.26503447,9.999e-05,2]
[327669681,1716299441419,-817.86573548,9.999e-05,2]
[327669682,1716299441430,-234.26974614,9.999e-05,2]
[327669683,1716299441439,-181.49361007,0.00014999,2]
[327669684,1716299441449,-4577.73032226,0.00015,2]
[327669685,1716299441459,-1149.48846863,0.00019177,2]
[327669686,1716299441468,-500.0,0.00019178,2]
[327669687,1716299441478,-439.7171246,0.00019178,2]
[327669688,1716299441488,-500.0,0.00019178,2]
[327669689,1716299441497,-500.0,0.00019178,2]
[327669690,1716299441506,-500.0,0.00019178,2]
[327669691,1716299441516,-500.0,0.00019178,2]
[327669692,1716299441525,-500.0,0.00019178,2]
[327669693,1716299441535,-500.0,0.00019178,2]
[327669694,1716299441545,-163.492418,0.00019178,2]
[327669695,1716299441555,-250.20922677,0.000199,2]
[327669696,1716299441565,-1509.43294476,0.0002,2]
[327669697,1716299441575,-547.14387895,0.0002,2]
[327669698,1716299441584,-158.620353,0.00024384,2]
[327669699,1716299441594,-1241.03332704,0.000266,2]
[327669700,1716299441608,-642.12,0.0002899,3]
[327669701,1716299441617,-17966.7642715,0.00029,17]
[327669702,1716299441626,-5514.70277308,0.00029,2]
[327669703,1716299441638,-5588.49976819,0.00029,2]
[327669704,1716299441647,-921.05245398,0.0003123,4]
[327669705,1716299441656,-158.620353,0.00031421,2]
[327669706,1716299441666,-320.18671274,0.00032,30]
[327669707,1716299441675,-3699.59071211,0.00032511,2]
[327669740,1716299443890,-1350.88655983,7.241e-05,2]
[327669741,1716299443900,-524.48464424,0.00032511,2]
[327669742,1716299443909,-417.32360569,0.00032561,2]
[327669743,1716299443918,-4801.76633187,0.00032674,14]
[327669744,1716299443929,-1755.70190997,0.00032674,14]
[327669746,1716299443939,-2000.0,0.00032676,2]
[327669747,1716299443949,-535.1,0.00032764,3]
[327669748,1716299444106,-3328.75955855,0.00032774,7]
[327669861,1716299447347,-20758.28924585,0.00032774,7]
[327669863,1716299447370,-53741.30684776,0.00032774,5]
[327670003,1716299624974,8359.30305888,0.00018,7]
[327670004,1716299640209,2130.10009698,0.000265,120]
[327670015,1716299935248,8359.30305888,0.00024383,7]
[327670039,1716300362719,8359.30305888,0.00019999,7]
[327670102,1716300632591,-155.04341216,6.354e-05,2]
[327670103,1716300632600,-155.04341216,6.355e-05,2]
[327670105,1716300632613,-684.8282798,6.356e-05,2]
[327670107,1716300632622,-1766.50953912,6.357e-05,2]
[327670135,1716300632912,-5553.70810354,6.357e-05,2]
[327670137,1716300632925,-2637.25044214,6.357e-05,2]
[327670140,1716300632937,-554.17119668,6.357e-05,2]
[327670142,1716300632947,-158.56849578,6.357e-05,2]
[327670144,1716300632957,-155.04341216,6.359e-05,2]
[327670146,1716300632966,-803.2100873,6.359e-05,2]
[327670148,1716300632977,-1284.5294023,6.359e-05,2]
[327670150,1716300632989,-591.82463825,6.359e-05,2]
[327670152,1716300632999,-114.83536175,6.361e-05,2]
[327670155,1716300633011,-441.04596982,6.361e-05,2]
[327670157,1716300633022,-1453.99588173,6.361e-05,2]
[327670313,1716300639141,-2410.0710028,6.361e-05,2]
[327670315,1716300639151,-444.8132716,6.406e-05,2]
[327670317,1716300639161,-155.04341216,7.309e-05,2]
[327670319,1716300639171,-1581.91498407,7.309e-05,2]
[327670321,1716300639181,-720.18654452,7.31e-05,2]
[327670323,1716300639191,-207.49538567,7.31e-05,2]
[327670324,1716300639200,-331.06432126,7.311e-05,2]
[327670325,1716300639209,-1717.62384614,7.394e-05,2]
[327670326,1716300639218,-611.3444662,7.396e-05,2]
[327670328,1716300639230,-709.27700003,7.396e-05,2]
[327670330,1716300639248,-699.98754814,7.396e-05,2]
[327670331,1716300639257,-3065.55245186,7.397e-05,2]
[327670332,1716300639270,-1757.16259521,7.397e-05,2]
[327670333,1716300639281,-1259.41545977,7.397e-05,2]
[327670334,1716300639292,-999.737121,7.397e-05,2]
[327670335,1716300639304,-6051.02606794,7.397e-05,2]
[327670336,1716300639315,-562.23951727,7.397e-05,2]
[327670347,1716300641396,-752.84226243,6.36e-05,2]
[327670348,1716300641408,-157.07811001,6.36e-05,2]
[327670349,1716300641417,-1840.61152591,7.397e-05,2]
[327670350,1716300641429,-7428.95509376,7.397e-05,2]
[327670351,1716300641442,-1935.30016728,7.397e-05,2]
[327670352,1716300641452,-196.45411869,9.499e-05,2]
[327670353,1716300641462,-442.89761684,9.999e-05,2]
[327670354,1716300641471,-9429.85164227,9.999e-05,2]
[327670355,1716300641481,-514.01302238,0.00012897,2]
[327670356,1716300641493,-1952.77789904,0.00012897,2]
[327670357,1716300641502,-1450.9824822,0.00012898,2]
[327670358,1716300641512,-410.5949292,0.00012899,2]
[327670359,1716300641522,-186.80919162,0.000129,2]
[327670360,1716300641532,-302.38073973,0.00013697,2]
[327670361,1716300641542,-227.33082,0.00013699,2]
[327670362,1716300641552,-3000.0,0.00013699,2]
[327670363,1716300641561,-3506.09194049,0.00013699,2]
[327670364,1716300641572,-1564.93429988,0.00013699,2]
[327670365,1716300641584,-803.50534785,0.00013699,2]
[327670410,1716300644439,-402.82218894,0.00013699,2]
[327670411,1716300644516,-3291.01386684,0.00013699,2]
[327670412,1716300644525,-181.49361007,0.0001499,2]
[327670413,1716300644535,-658.33611615,0.00014991,2]
[327670414,1716300644544,-283.68900956,0.00014992,2]
[327670415,1716300644553,-316.32323638,0.00014992,2]
[327670416,1716300644563,-4999.90092817,0.00014993,2]
[327670418,1716300644575,-2865.0,0.00014993,2]
[327670420,1716300644586,-31.4821617,0.00014993,2]
[327670422,1716300644596,-1350.88655983,0.00014997,2]
[327670424,1716300644605,-1095.32887004,0.00014998,2]
[327670426,1716300644615,-1149.48846863,0.00016471,2]
[327670428,1716300644624,-2108.354901,0.00016472,2]
[327670430,1716300644633,-521.47458552,0.00016499,2]
[327670432,1716300644642,-155.04341216,0.00017928,2]
[327670434,1716300644651,-186.80919159,0.00017929,2]
[327670436,1716300644660,-2895.84686388,0.0002,2]
[327670438,1716300644669,-500.0,0.00020913,2]
[327670440,1716300644679,-500.0,0.00020913,2]
[327670442,1716300644688,-181.91513738,0.00020913,2]
[327670444,1716300644699,-4693.15522604,0.00021,2]
[327670446,1716300644712,-230.0671324,0.00024383,2]
[327670448,1716300644722,-158.620353,0.00024384,2]
[327670450,1716300644732,-364.79903492,0.00024581,2]
[327670452,1716300644743,-156.866,0.00026389,2]
[327670454,1716300644753,-186.80919159,0.00026459,2]
[327670457,1716300644762,-3373.78266972,0.000265,2]
[327670459,1716300644771,-198.62991665,0.000274,2]
[327670461,1716300644782,-2635.15875922,0.00029997,2]
[327670462,1716300644794,-256.0,0.0003,2]
[327670465,1716300644806,-921.05245398,0.0003123,4]
[327670467,1716300644815,-599.27,0.00031237,3]
[327670468,1716300644824,-313.10668002,0.00031247,4]
[327670471,1716300644834,-1872.1968821,0.00031251,4]
[327670473,1716300644844,-499.39,0.0003199,3]
[327670474,1716300644855,-9123.16841142,0.00032,2]
[327670493,1716300646841,-227.33082,0.00016332,2]
[327670495,1716300646851,-295.82362558,0.00032,2]
[327670497,1716300646860,-426.01069885,0.00032395,2]
[327670498,1716300646871,-158.620353,0.00032427,2]
[327670499,1716300646880,-4265.23886822,0.00032529,2]
[327670500,1716300646890,-2000.0,0.00032674,2]
[327670501,1716300646900,-7145.0170631,0.00032771,2]
[327670502,1716300646910,-12043.5244022,0.00032774,7]
[327670503,1716300646920,-56341.16624595,0.00032774,5]
[327670504,1716300744486,10000.0,6.1e-05,2]
[327670505,1716300757693,3205.0,6.1e-05,2]
[327670506,1716300919360,412.0,0.00024383,7]
[327670507,1716300934901,6021.7622011,0.00022,7]
[327670512,1716301052808,3010.88110055,0.00022,7]
[327670675,1716301834849,-155.04341216,9.844e-05,2]
[327670677,1716301834859,-1893.86633087,9.845e-05,2]
[327670679,1716301834870,-1942.76364312,9.846e-05,2]
[327670681,1716301834879,-487.85550363,9.846e-05,2]
[327670683,1716301834890,-455.56419663,9.847e-05,2]
[327670685,1716301834899,-186.95436808,9.848e-05,2]
[327670687,1716301834909,-9562.27947745,9.848e-05,2]
[327670689,1716301834918,-2297.81516782,9.849e-05,2]
[327670691,1716301834928,-818.5944738,9.884e-05,2]
[327670693,1716301834938,-250.70890657,9.885e-05,2]
[327670695,1716301834947,-4548.58263501,9.999e-05,2]
[327670697,1716301834957,-24900.0,0.00010262,2]
[327670699,1716301834967,-658.33611615,0.00013488,2]
[327670700,1716301834977,-186.80919161,0.00013489,2]
[327670701,1716301834987,-7896.38308987,0.00013588,2]
[327670702,1716301834996,-316.32323638,0.00013588,2]
[327670703,1716301835005,-302.38073973,0.00013589,2]
[327670704,1716301835015,-1095.32887004,0.00013589,2]